Workbook

Sheet Лист1
A1: Рацион: Основное организованное меню с 7-11 лет | E1: День: | F1: 1 | I1: Сезон: | K1: 01.01-12.31 (Все)
D2: Неделя: | F2: 2 | I2: Возраст: | K2: Основное организованное меню с 7-11 лет
A3: № рец. | B3: Прием пищи, наименование блюда | D3: Масса порции | E3: Пищевые вещества (г) | H3: Энерге- тическая ценность (ккал) | I3: Витамины (мг) | M3: Минеральные вещества (мг)
E4: Б | F4: Ж | G4: У | I4: B1 | J4: C | K4: A, мкг | L4: E | M4: Ca | N4: P | O4: Mg | P4: Fe
A5: 1 | B5: 2 | D5: 3 | E5: 4 | F5: 5 | G5: 6 | H5: 7 | I5: 8 | J5: 9 | K5: 10 | L5: 11 | M5: 12 | N5: 13 | O5: 14 | P5: 15
A6: завтрак
A7: 191 | B7: Каша рисовая молочная | D7: 185 | E7: 4.50 | F7: 7.20 | G7: 27.60 | H7: 194.00 | I7: 0.06 | J7: 0.45 | M7: 105.29 | O7: 30.22 | P7: 0.49
A8: 536 | B8: катык,кисломолочный продукт | D8: 100 | E8: 2.80 | F8: 3.20 | G8: 4.50 | H8: 56.4 | I8: 0.04 | J8: 0.6 | K8: 22.00 | L8: 0.07 | M8: 122.00 | N8: 96 | O8: 15.00 | P8: 0.10
A10: 283 | B10: Чай с сахаром | D10: 200 | E10: 0.08 | F10: 0.02 | G10: 10.01 | H10: 40.51 | M10: 0.26 | P10: 0.03
A11: 114 | B11: Хлеб пшеничный | D11: 30 | E11: 1.14 | F11: 0.12 | G11: 7.38 | H11: 70.50 | I11: 0.01 | M11: 3.00 | P11: 0.16
A12: 118 | B12: Плоды свежие(груши) | D12: 180 | E12: 0.72 | F12: 0.54 | G12: 18.54 | H12: 84.60 | I12: 0.02 | J12: 5.00 | K12: 2.00 | L12: 0.40 | M12: 19.00 | N12: 16.00 | O12: 12.00 | P12: 2.30
A13: итого за завтрак | D13: 615 | E13: 26.18 | F13: 18.07 | G13: 78.11 | H13: =SUM(H7:H12) -> 446.01 | I13: 0.11 | J13: 5.25 | K13: 112.50 | L13: 0.91 | M13: 41.27 | N13: 47.95 | O13: 23.27 | P13: 3.79
A14: обед
A15: 36 | B15: Салат "Мазайка"(картофель,морковь,огурцы) | D15: 60 | E15: 0.87 | F15: 5.28 | G15: 4.42 | H15: 67.90 | I15: 0.01 | J15: 1.42 | K15: 1.20 | L15: 2.20 | M15: 4.51 | N15: 9.56 | O15: 3.26 | P15: 0.12
A16: 59 | B16: Суп картофельный с макаронными изделиями | D16: 200 | E16: 3.16 | F16: 2.21 | G16: 17.68 | H16: 102.71 | I16: 0.01 | J16: 1.50 | L16: 0.08 | M16: 6.38 | O16: 5.21 | P16: 0.15
A17: 175 | B17: Каша пшеничная рассыпчатая | D17: 180 | E17: 8.56 | F17: 5.61 | G17: 53.12 | H17: 297.35 | I17: 0.23 | K17: 29.03 | L17: 1.38 | M17: 32.51 | N17: 215.61 | O17: 46.49 | P17: 3.65
A18: 369 | B18: Гуляш | D18: 90 | E18: 15.84 | F18: 6.41 | G18: 2.69 | H18: 132.03 | I18: 0.10 | J18: 0.54 | K18: 72.00 | L18: 2.46 | M18: 9.20 | N18: 167.13 | O18: 24.69 | P18: 1.58
A19: 306 | B19: Кисель | D19: 200 | E19: 0.02 | F19: 0.02 | G19: 15.67 | H19: 76.00 | I19: 0.03 | J19: 20.10 | K19: 0.13 | L19: 2.35
A20: 114 | B20: Хлеб пшеничный | D20: 30 | E20: 1.52 | F20: 0.16 | G20: 9.84 | H20: 70.50 | I20: 0.02 | M20: 4.00 | P20: 0.22
A21: 116 | B21: Хлеб столовый (ржано-пшеничный) | D21: 30 | E21: 1.98 | F21: 0.36 | G21: 10.20 | H21: 54.30 | I21: 0.05 | M21: 10.50 | P21: 1.17
A22: итого за обед | D22: =SUM(D15:D21) -> 790 | E22: 38.74 | F22: 21.37 | G22: 139.24 | H22: =SUM(H15:H21) -> 800.79 | I22: 0.54 | J22: =J15+J16+J17+J18+J19+J20+J21 -> 23.56 | K22: =K15+K16+K17+K18+K19+K20+K21 -> 102.36 | L22: =L15+L16+L17+L18+L19+L20+L21 -> 8.47 | M22: 80.73 | N22: =N15+N16+N17+N18+N19+N20+N21 -> 392.30 | O22: =O15+O16+O17+O18+O19+O20+O21 -> 79.65 | P22: 7.67
A28: итого за день | D28: =D13+D22+D27 -> 1405 | E28: 64.92 | F28: 39.44 | G28: 217.35 | H28: =H13+H22 -> 1246.80 | I28: 0.65 | J28: 28.81 | K28: 214.86 | L28: 9.38 | M28: 122.00 | N28: 440.25 | O28: 102.92 | P28: 11.46

Sheet Лист2

Sheet Лист3
